fUSD/lending_fUSD_20260324
["ID","MTS","AMOUNT","RATE_DAILY","PERIOD"]
[408845493,1774338786790,-500.0,0.00043835,120]
[408845494,1774338786800,-500.0,0.00043835,120]
[408845495,1774338786810,-500.0,0.00043835,120]
[408845496,1774338786819,-500.0,0.00043835,120]
[408845497,1774338786830,-500.0,0.00043835,120]
[408845498,1774338786840,-1215.44,0.00043835,120]
[408845499,1774338786849,-500.0,0.00043835,120]
[408845500,1774338786859,-1046.27,0.00043835,120]
[408845501,1774338786868,-500.0,0.00043835,120]
[408845502,1774338786878,-500.0,0.00043835,120]
[408845503,1774338786887,-1613.72,0.00043835,120]
[408845504,1774338786897,-1897.96,0.00043835,120]
[408845505,1774338786907,-770.58,0.00043835,120]
[408845506,1774338786916,-1960.33,0.00043835,120]
[408845507,1774338786927,-3056.27,0.00043835,120]
[408845508,1774338786936,-500.0,0.00043835,120]
[408845509,1774338786946,-1228.99,0.00043835,120]
[408845510,1774338786955,-680.28,0.00043835,120]
[408845511,1774338786964,-769.44,0.00043835,120]
[408845512,1774338786973,-500.0,0.00043835,120]
[408845513,1774338786983,-163.51207616,0.00043835,60]
[408845514,1774338786992,-500.0,0.00043835,120]
[408845515,1774338787002,-500.0,0.00043835,120]
[408845516,1774338787011,-855.78,0.00043835,120]
[408845517,1774338787021,-500.0,0.00043835,120]
[408845518,1774338787031,-1078.9,0.00043835,120]
[408845519,1774338787043,-1780.32,0.00043835,120]
[408845520,1774338787053,-1099.3,0.00043835,120]
[408845521,1774338787063,-699.82,0.00043835,120]
[408845522,1774338787072,-759.17,0.00043835,120]
[408845523,1774338787082,-500.0,0.00043835,120]
[408845524,1774338787092,-500.0,0.00043835,120]
[408845525,1774338787101,-931.09,0.00043835,120]
[408845526,1774338787111,-815.17,0.00043835,120]
[408845527,1774338787120,-500.0,0.00043835,120]
[408845528,1774338787129,-656.8,0.00043835,120]
[408845529,1774338787139,-500.0,0.00043835,120]
[408845530,1774338787149,-500.0,0.00043835,120]
[408845531,1774338787160,-500.0,0.00043835,120]
[408845532,1774338787169,-614.51,0.00043835,120]
[408845533,1774338787181,-671.25,0.00043835,120]
[408845534,1774338787200,-1323.85,0.00043835,7]
[408845535,1774338787209,-500.0,0.00043835,14]
[408845536,1774338787219,-500.0,0.00043835,120]
[408845537,1774338787228,-984.57,0.00043835,120]
[408845538,1774338787238,-500.0,0.00043835,120]
[408845539,1774338787247,-500.0,0.00043835,120]
[408845540,1774338787257,-729.45,0.00043835,120]
[408845541,1774338787266,-556.52224735,0.00043835,120]
[408845542,1774338787276,-500.0,0.00043835,120]
[408845543,1774338787285,-926.4,0.00043835,120]
[408845544,1774338787295,-1291.11,0.00043835,120]
[408845545,1774338787304,-560.4,0.00043835,120]
[408845546,1774338787313,-617.21,0.00043835,120]
[408845547,1774338787323,-1726.06,0.00043835,120]
[408845548,1774338787332,-500.0,0.00043835,120]
[408845549,1774338787342,-585.66183168,0.00043835,120]
[408845550,1774338787352,-500.0,0.00043835,120]
[408845551,1774338787362,-500.0,0.00043835,120]
[408845552,1774338787372,-500.0,0.00043835,120]
[408845553,1774338787382,-1356.13,0.00043835,120]
[408845554,1774338787393,-801.87,0.00043835,120]
[408845555,1774338787403,-500.0,0.00043835,120]
[408845556,1774338787413,-500.0,0.00043835,120]
[408845557,1774338787422,-2922.62,0.00043835,60]
[408845558,1774338787432,-821.12,0.00043835,120]
[408845559,1774338787443,-665.38,0.00043835,120]
[408845560,1774338787452,-500.0,0.00043835,120]
[408845561,1774338787462,-500.0,0.00043835,120]
[408845562,1774338787472,-866.85,0.00043835,120]
[408845563,1774338787482,-500.0,0.00043835,120]
[408845564,1774338787492,-500.0,0.00043835,120]
[408845565,1774338787502,-500.0,0.00043835,120]
[408845566,1774338787511,-2859.83,0.00043835,120]
[408845567,1774338787521,-442.12328934,0.00043835,120]
[408845568,1774338787531,-644.49,0.00043835,120]
[408845569,1774338787540,-4166.66,0.00043835,120]
[408845570,1774338787550,-719.59,0.00043835,120]
[408845571,1774338787560,-543.64202741,0.00043835,120]
[408845572,1774338787570,-679.57,0.00043835,120]
[408845573,1774338787580,-500.0,0.00043835,120]
[408845574,1774338787590,-599.93,0.00043835,120]
[408845575,1774338787599,-500.0,0.00043835,120]
[408845576,1774338787609,-362.05695696,0.00043835,120]
[408845577,1774338787619,-1432.07,0.00043835,120]
[408845578,1774338787628,-500.0,0.00043835,120]
[408845579,1774338787637,-730.01,0.00043835,120]
[408845580,1774338787649,-508.87,0.00043835,120]
[408845581,1774338787659,-883.47,0.00043835,120]
[408845582,1774338787668,-500.0,0.00043835,120]
[408845583,1774338787679,-500.0,0.00043835,120]
[408845584,1774338787688,-500.0,0.00043835,120]
[408845585,1774338787698,-343.62395517,0.00043835,120]
[408845586,1774338787708,-500.0,0.00043835,120]
[408845587,1774338787718,-759.73,0.00043835,120]
[408845588,1774338787727,-500.0,0.00043835,120]
[408845589,1774338787737,-1171.93,0.00043835,120]
[408845590,1774338787747,-892.78,0.00043835,120]
[408845591,1774338787757,-749.74,0.00043835,120]
[408845592,1774338787767,-978.13,0.00043835,120]
[408845593,1774338787778,-500.0,0.00043835,120]
[408845594,1774338787788,-674.49,0.00043835,120]
[408845595,1774338787797,-1973.42,0.00043835,120]
[408845596,1774338787807,-1355.12,0.00043835,120]
[408845597,1774338787817,-1044.01,0.00043835,120]
[408845598,1774338787827,-500.0,0.00043835,120]
[408845599,1774338787837,-786.73,0.00043835,120]
[408845600,1774338787847,-500.0,0.00043835,120]
[408845601,1774338787863,-500.0,0.00043835,120]
[408845602,1774338787873,-500.0,0.00043835,120]
[408845603,1774338787883,-1476.03,0.00043835,120]
[408845604,1774338787893,-500.0,0.00043835,120]
[408845605,1774338787902,-647.98,0.00043835,120]
[408845606,1774338787912,-500.0,0.00043835,120]
[408845607,1774338787923,-947.33,0.00043835,120]
[408845608,1774338787933,-590.04,0.00043835,120]
[408845609,1774338787942,-924.76,0.00043835,120]
[408845610,1774338787952,-500.0,0.00043835,120]
[408845611,1774338787962,-1633.92,0.00043835,120]
[408845612,1774338787972,-1295.04,0.00043835,120]
[408845613,1774338787982,-500.0,0.00043835,120]
[408845614,1774338787993,-588.11,0.00043835,120]
[408845615,1774338788003,-1441.35,0.00043835,60]
[408845616,1774338788013,-1951.73,0.00043835,120]
[408845617,1774338788023,-500.0,0.00043835,120]
[408845618,1774338788032,-2782.79,0.00043835,120]
[408845619,1774338788041,-605.44,0.00043835,120]
[408845620,1774338788051,-894.69,0.00043835,120]
[408845621,1774338788060,-500.0,0.00043835,120]
[408845622,1774338788070,-525.27,0.00043835,120]
[408845623,1774338788079,-500.0,0.00043835,120]
[408845624,1774338788088,-1730.58,0.00043835,120]
[408845625,1774338788097,-517.76,0.00043835,120]
[408845626,1774338788107,-373.75659469,0.00043835,120]
[408845627,1774338788116,-500.0,0.00043835,120]
[408845628,1774338788126,-500.0,0.00043835,120]
[408845629,1774338788135,-500.0,0.00043835,120]
[408845630,1774338788145,-1269.84,0.00043835,120]
[408845631,1774338788155,-1536.15,0.00043835,120]
[408845632,1774338788164,-1493.36,0.00043835,120]
[408845633,1774338788562,-500.0,0.00043835,120]
[408845634,1774338788572,-632.12,0.00043835,120]
[408845635,1774338788583,-600.11,0.00043835,120]
[408845636,1774338788593,-1551.97,0.00043835,120]
[408845637,1774338788603,-724.43,0.00043835,120]
[408845638,1774338788613,-2431.7,0.00043835,120]
[408845639,1774338788622,-217.48696812,0.00043835,120]
[408845640,1774338788632,-1747.14,0.00043835,120]
[408845641,1774338788641,-1632.69,0.00043835,120]
[408845642,1774338788650,-1186.56,0.00043835,120]
[408845643,1774338788660,-500.0,0.00043835,120]
[408845644,1774338788670,-1598.01,0.00043835,120]
[408845645,1774338788679,-500.0,0.00043835,120]
[408845646,1774338788689,-517.15,0.00043835,120]
[408845647,1774338788699,-500.0,0.00043835,120]
[408845648,1774338788709,-1075.02,0.00043835,120]
[408845649,1774338788719,-500.0,0.00043835,120]
[408845650,1774338788730,-500.0,0.00043835,120]
[408845651,1774338788740,-1616.03,0.00043835,120]
[408845652,1774338788750,-1428.85,0.00043835,120]
[408845653,1774338788760,-500.0,0.00043835,120]
[408845654,1774338788770,-500.0,0.00043835,120]
[408845655,1774338788780,-665.63,0.00043835,120]
[408845656,1774338788790,-866.03,0.00043835,120]
[408845657,1774338788799,-1926.05,0.00043835,120]
[408845658,1774338788809,-2687.41,0.00043835,120]
[408845659,1774338788819,-728.07,0.00043835,120]
[408845660,1774338788829,-638.16,0.00043835,120]
[408845661,1774338788839,-500.0,0.00043835,120]
[408845662,1774338788849,-604.38,0.00043835,120]
[408845663,1774338788858,-1493.48,0.00043835,30]
[408845664,1774338788868,-801.43,0.00043835,120]
[408845665,1774338788878,-752.4,0.00043835,120]
[408845666,1774338788888,-552.47,0.00043835,120]
[408845667,1774338788898,-500.0,0.00043835,120]
[408845668,1774338788907,-995.77,0.00043835,120]
[408845669,1774338788917,-500.0,0.00043835,120]
[408845670,1774338788929,-878.89,0.00043835,120]
[408845671,1774338788938,-2173.76,0.00043835,120]
[408845672,1774338788948,-1298.61,0.00043835,120]
[408845673,1774338788958,-1791.61,0.00043835,120]
[408845674,1774338788968,-500.0,0.00043835,120]
[408845675,1774338788977,-500.0,0.00043835,120]
[408845676,1774338788988,-1260.51,0.00043835,120]
[408845677,1774338788998,-663.27,0.00043835,120]
[408845678,1774338789007,-500.0,0.00043835,120]
[408845679,1774338789017,-1454.94,0.00043835,120]
[408845680,1774338789027,-500.0,0.00043835,120]
[408845681,1774338789036,-1601.87,0.00043835,120]
[408845682,1774338789046,-1108.88,0.00043835,120]
[408845683,1774338789056,-1258.26,0.00043835,120]
[408845684,1774338789065,-500.0,0.00043835,120]
[408845685,1774338789075,-500.0,0.00043835,120]
[408845686,1774338789085,-631.57,0.00043835,120]
[408845687,1774338789095,-1791.18,0.00043835,120]
[408845688,1774338789104,-500.0,0.00043835,120]
[408845689,1774338789114,-514.08,0.00043835,120]
[408845690,1774338789124,-585.76,0.00043835,120]
[408845691,1774338789134,-1447.52,0.00043835,120]
[408845692,1774338789144,-500.0,0.00043835,120]
[408845693,1774338789154,-500.0,0.00043835,120]
[408845694,1774338789165,-634.53,0.00043835,120]
[408845695,1774338789177,-500.0,0.00043835,120]
[408845696,1774338789187,-704.35099538,0.00043835,120]
[408845697,1774338789197,-500.0,0.00043835,120]
[408845698,1774338789207,-500.0,0.00043835,120]
[408845699,1774338789228,-500.0,0.00043835,120]
[408845700,1774338789243,-500.0,0.00043835,120]
[408845701,1774338789254,-514.43,0.00043835,120]
[408845702,1774338789264,-500.0,0.00043835,120]
[408845703,1774338789278,-1530.3,0.00043835,120]
[408845704,1774338789288,-1437.77,0.00043835,120]
[408845705,1774338789298,-735.64,0.00043835,120]
[408845706,1774338789307,-500.0,0.00043835,120]
[408845707,1774338789317,-798.73,0.00043835,120]
[408845708,1774338789327,-500.0,0.00043835,120]
[408845709,1774338789336,-2864.08,0.00043835,120]
[408845710,1774338789346,-534.31,0.00043835,120]
[408845711,1774338789355,-500.0,0.00043835,120]
[408845712,1774338789365,-500.0,0.00043835,120]
[408845713,1774338789375,-800.61,0.00043835,120]
[408845714,1774338789384,-500.0,0.00043835,120]
[408845715,1774338789397,-500.0,0.00043835,120]
[408845716,1774338789406,-1519.14,0.00043835,120]
[408845717,1774338789416,-500.0,0.00043835,120]
[408845718,1774338789426,-579.61,0.00043835,120]
[408845719,1774338789435,-971.22,0.00043835,120]
[408845720,1774338789447,-500.0,0.00043835,120]
[408845721,1774338789457,-2175.73,0.00043835,120]
[408845722,1774338789468,-1404.43,0.00043835,120]
[408845723,1774338789478,-651.63,0.00043835,120]
[408845724,1774338789487,-500.0,0.00043835,120]
[408845725,1774338789497,-500.0,0.00043835,120]
[408845726,1774338789507,-769.19,0.00043835,120]
[408845727,1774338789516,-666.77,0.00043835,120]
[408845728,1774338789526,-1046.52,0.00043835,120]
[408845729,1774338789536,-500.0,0.00043835,120]
[408845730,1774338789545,-500.0,0.00043835,120]
[408845731,1774338789556,-547.19,0.00043835,120]
[408845732,1774338789566,-613.47,0.00043835,120]
[408845733,1774338789579,-500.0,0.00043835,120]
[408845734,1774338789589,-500.0,0.00043835,120]
[408845735,1774338789598,-664.14,0.00043835,120]
[408845736,1774338789608,-536.60674164,0.00043835,120]
[408845737,1774338789617,-500.55,0.00043835,120]
[408845738,1774338789627,-1409.42,0.00043835,120]
[408845739,1774338789638,-500.0,0.00043835,120]
[408845740,1774338789647,-1958.04,0.00043835,120]
[408845741,1774338789657,-500.0,0.00043835,120]
[408845742,1774338789666,-845.98,0.00043835,120]
[408845743,1774338789676,-788.97,0.00043835,120]
[408845744,1774338789686,-500.0,0.00043835,120]
[408845745,1774338789697,-979.08,0.00043835,120]
[408845746,1774338789707,-2271.51,0.00043835,120]
[408845747,1774338789716,-798.9,0.00043835,120]
[408845748,1774338789726,-500.0,0.00043835,120]
[408845749,1774338789736,-785.73,0.00043835,120]
[408845750,1774338789746,-1319.48,0.00043835,120]
[408845751,1774338789755,-898.9,0.00043835,120]
[408845752,1774338789765,-1026.81,0.00043835,120]
[408845753,1774338789774,-896.49,0.00043835,2]
[408845754,1774338789784,-591.09,0.00043835,120]
[408845755,1774338789794,-1571.69,0.00043835,120]
[408845756,1774338789804,-951.54,0.00043835,120]
[408845757,1774338789813,-500.0,0.00043835,120]
[408845758,1774338789823,-1576.67,0.00043835,120]
[408845759,1774338789832,-227.75806109,0.00043835,120]
[408845760,1774338789841,-500.0,0.00043835,120]
[408845761,1774338789850,-533.43,0.00043835,120]
[408845762,1774338789859,-1797.77,0.00043835,120]
[408845763,1774338789869,-641.68,0.00043835,30]
[408845764,1774338789878,-908.05,0.00043835,120]
[408845765,1774338789888,-978.03,0.00043835,120]
[408845766,1774338789899,-500.0,0.00043835,120]
[408845767,1774338789908,-500.0,0.00043835,120]
[408845768,1774338789918,-500.0,0.00043835,120]
[408845769,1774338789929,-1254.4,0.00043835,120]
[408845770,1774338789938,-500.0,0.00043835,120]
[408845771,1774338789948,-500.0,0.00043835,120]
[408845772,1774338789958,-890.53,0.00043835,120]
[408845773,1774338789968,-794.03,0.00043835,120]
[408845774,1774338789977,-500.0,0.00043835,120]
[408845775,1774338789987,-500.0,0.00043835,120]
[408845776,1774338789996,-588.33,0.00043835,120]
[408845777,1774338790006,-954.83,0.00043835,120]
[408845778,1774338790016,-642.99,0.00043835,120]
[408845779,1774338790027,-2073.54,0.00043835,120]
[408845780,1774338790038,-2204.1,0.00043835,120]
[408845781,1774338790047,-945.89,0.00043835,120]
[408845782,1774338790057,-610.5,0.00043835,120]
[408845783,1774338790066,-1685.9,0.00043835,120]
[408845784,1774338790076,-500.0,0.00043835,120]
[408845785,1774338790086,-2030.17,0.00043835,30]
[408845786,1774338790096,-2121.36,0.00043835,120]
[408845787,1774338790106,-2554.76,0.00043835,120]
[408845788,1774338790115,-659.65,0.00043835,120]
[408845789,1774338790125,-976.45,0.00043835,120]
[408845790,1774338790134,-328.34104607,0.00043835,120]
[408845791,1774338790144,-500.0,0.00043835,30]
[408845792,1774338790154,-534.01,0.00043835,120]
[408845793,1774338790164,-1990.0,0.00043835,120]
[408845794,1774338790174,-1000.85,0.00043835,120]
[408845795,1774338790185,-618.78,0.00043835,120]
[408845796,1774338790194,-1204.77,0.00043835,120]
[408845797,1774338790204,-1087.07,0.00043835,120]
[408845798,1774338790214,-500.0,0.00043835,120]
[408845799,1774338790224,-758.91,0.00043835,120]
[408845800,1774338790234,-861.35,0.00043835,120]
[408845801,1774338790243,-639.53,0.00043835,120]
[408845802,1774338790255,-500.0,0.00043835,120]
[408845803,1774338790264,-964.47,0.00043835,120]
[408845804,1774338790274,-1790.64,0.00043835,120]
[408845805,1774338790284,-1377.48,0.00043835,120]
[408845806,1774338790294,-817.12,0.00043835,120]
[408845807,1774338790303,-500.0,0.00043835,120]
[408845808,1774338790313,-1048.96,0.00043835,120]
[408845809,1774338790323,-500.0,0.00043835,120]
[408845810,1774338790332,-617.31,0.00043835,120]
[408845811,1774338790343,-1373.09,0.00043835,120]
[408845812,1774338790353,-950.57,0.00043835,120]
[408845813,1774338790362,-500.0,0.00043835,120]
[408845814,1774338790373,-1252.8,0.00043835,120]
[408845815,1774338790382,-500.0,0.00043835,2]
[408845816,1774338790396,-500.0,0.00043835,120]
[408845817,1774338790407,-3697.72,0.00043835,2]
[408845818,1774338790417,-500.0,0.00043835,120]
[408845819,1774338790427,-500.0,0.00043835,2]
[408845820,1774338790438,-1527.96,0.00043835,120]
[408845821,1774338790448,-589.22,0.00043835,120]
[408845822,1774338790458,-658.92,0.00043835,120]
[408845823,1774338790469,-541.68,0.00043835,120]
[408845824,1774338790481,-1047.63,0.00043835,120]
[408845825,1774338790491,-641.73,0.00043835,120]
[408845826,1774338790500,-570.14,0.00043835,120]
[408845827,1774338790510,-500.0,0.00043835,120]
[408845828,1774338790520,-516.11,0.00043835,120]
[408845829,1774338790530,-1329.81,0.00043835,120]
[408845830,1774338790540,-2000.22,0.00043835,120]
[408845831,1774338790550,-1988.85,0.00043835,120]
[408845832,1774338790559,-500.0,0.00043835,120]
[408845833,1774338790569,-500.0,0.00043835,120]
[408845834,1774338790579,-627.92,0.00043835,120]
[408845835,1774338790588,-2821.24,0.00043835,120]
[408845836,1774338790598,-500.0,0.00043835,90]
[408845837,1774338790608,-819.97,0.00043835,120]
[408845838,1774338790618,-500.0,0.00043835,120]
[408845839,1774338790628,-1024.12,0.00043835,120]
[408845840,1774338790638,-500.0,0.00043835,120]
[408845841,1774338790648,-500.0,0.00043835,120]
[408845842,1774338790657,-1947.88,0.00043835,120]
[408845843,1774338790667,-500.0,0.00043835,120]
[408845844,1774338790676,-659.88,0.00043835,120]
[408845845,1774338790686,-810.31,0.00043835,120]
[408845846,1774338790695,-530.91,0.00043835,120]
[408845847,1774338790704,-1590.35,0.00043835,120]
[408845848,1774338790713,-688.15,0.00043835,120]
[408845849,1774338790723,-500.0,0.00043835,120]
[408845850,1774338790732,-4167.56,0.00043835,14]
[408845851,1774338790741,-515.79,0.00043835,120]
[408845852,1774338790750,-787.69,0.00043835,120]
[408845853,1774338790759,-698.8,0.00043835,120]
[408845854,1774338790770,-653.93,0.00043835,120]
[408845855,1774338790781,-866.06,0.00043835,120]
[408845856,1774338790791,-2147.96,0.00043835,120]
[408845857,1774338790801,-936.69,0.00043835,120]
[408845858,1774338790810,-500.0,0.00043835,120]
[408845859,1774338790820,-898.82,0.00043835,120]
[408845860,1774338790829,-627.57,0.00043835,120]
[408845861,1774338790838,-1680.93,0.00043835,120]
[408845862,1774338790848,-500.0,0.00043835,120]
[408845863,1774338790857,-516.86,0.00043835,120]
[408845864,1774338790866,-1731.35,0.00043835,120]
[408845865,1774338790877,-570.78,0.00043835,120]
[408845866,1774338790887,-1894.96,0.00043835,120]
[408845867,1774338790898,-580.56588699,0.00043835,120]
[408845868,1774338790909,-833.21,0.00043835,120]
[408845869,1774338790918,-500.0,0.00043835,120]
[408845870,1774338790928,-500.0,0.00043835,120]
[408845871,1774338790937,-678.17,0.00043835,120]
[408845872,1774338790947,-500.0,0.00043835,120]
[408845873,1774338790957,-1154.53,0.00043835,120]
[408845874,1774338790966,-532.48,0.00043835,120]
[408845875,1774338791095,-1168.04,0.00043835,120]
[408845876,1774338791105,-500.0,0.00043835,120]
[408845877,1774338791115,-1084.15,0.00043835,120]
[408845878,1774338791124,-500.0,0.00043835,120]
[408845879,1774338791133,-1543.41,0.00043835,120]
[408845880,1774338791143,-507.54,0.00043835,60]
[408845881,1774338791153,-1735.5,0.00043835,120]
[408845882,1774338791162,-524.04,0.00043835,120]
[408845883,1774338791171,-528.45,0.00043835,120]
[408845884,1774338791181,-500.0,0.00043835,120]
[408845885,1774338791191,-500.0,0.00043835,120]
[408845886,1774338791201,-1522.45,0.00043835,120]
[408845887,1774338791211,-500.0,0.00043835,120]
[408845888,1774338791220,-1728.67,0.00043835,120]
[408845889,1774338791230,-1193.94,0.00043835,120]
[408845890,1774338791239,-2483.59,0.00043835,120]
[408845891,1774338791252,-1145.4,0.00043835,120]
[408845892,1774338791261,-500.0,0.00043835,120]
[408845893,1774338791270,-785.33,0.00043835,120]
[408845894,1774338791279,-500.0,0.00043835,120]
[408845895,1774338791288,-802.88,0.00043835,120]
[408845896,1774338791297,-773.31,0.00043835,120]
[408845897,1774338791306,-504.31,0.00043835,120]
[408845898,1774338791315,-1766.83,0.00043835,120]
[408845899,1774338791324,-766.14,0.00043835,120]
[408845900,1774338791334,-655.33,0.00043835,120]
[408845901,1774338791343,-500.0,0.00043835,120]
[408845902,1774338791353,-202.03936817,0.00043835,120]
[408845903,1774338791362,-8117.29,0.00043835,120]
[408845904,1774338791371,-1429.82,0.00043835,120]
[408845905,1774338791381,-500.0,0.00043835,120]
[408845906,1774338791391,-500.0,0.00043835,120]
[408845907,1774338791404,-1503.53,0.00043835,120]
[408845908,1774338791414,-1630.29,0.00043835,120]
[408845909,1774338791423,-500.0,0.00043835,120]
[408845910,1774338791435,-841.35,0.00043835,120]
[408845911,1774338791444,-1387.91,0.00043835,120]
[408845912,1774338791454,-673.28,0.00043835,120]
[408845913,1774338791466,-680.83,0.00043835,120]
[408845914,1774338791476,-500.0,0.00043835,7]
[408845915,1774338791486,-500.0,0.00043835,120]
[408845916,1774338791496,-604.72,0.00043835,120]
[408845917,1774338791506,-1280.15,0.00043835,120]
[408845918,1774338791515,-1687.32,0.00043835,120]
[408845919,1774338791525,-553.79,0.00043835,120]
[408845920,1774338791534,-511.86551371,0.00043835,120]
[408845921,1774338791543,-500.0,0.00043835,120]
[408845922,1774338791553,-500.0,0.00043835,120]
[408845923,1774338791563,-500.0,0.00043835,120]
[408845924,1774338791572,-583.19,0.00043835,120]
[408845925,1774338791582,-500.0,0.00043835,120]
[408845926,1774338791591,-500.0,0.00043835,120]
[408845927,1774338791600,-765.82,0.00043835,120]
[408845928,1774338791609,-500.0,0.00043835,120]
[408845929,1774338791619,-500.0,0.00043835,120]
[408845930,1774338791629,-2264.25,0.00043835,120]
[408845931,1774338791639,-347.867191,0.00043835,120]
[408845932,1774338791648,-1037.3,0.00043835,30]
[408845933,1774338791658,-2339.0,0.00043835,120]
[408845934,1774338791667,-1021.05,0.00043835,120]
[408845935,1774338791677,-602.59,0.00043835,120]
[408845936,1774338791688,-1084.43,0.00043835,120]
[408845937,1774338791697,-500.0,0.00043835,120]
[408845938,1774338791707,-1040.73,0.00043835,120]
[408845939,1774338791717,-500.0,0.00043835,120]
[408845940,1774338791727,-851.46,0.00043835,120]
[408845941,1774338791736,-1082.75,0.00043835,120]
[408845942,1774338791746,-1633.66,0.00043835,120]
[408845943,1774338791756,-4460.36,0.00043835,120]
[408845944,1774338791766,-1090.06,0.00043835,120]
[408845945,1774338791775,-1298.83,0.00043835,120]
[408845946,1774338791785,-545.35,0.00043835,120]
[408845947,1774338791794,-1399.28,0.00043835,120]
[408845948,1774338791804,-911.41,0.00043835,120]
[408845949,1774338791813,-4326.06,0.00043835,120]
[408845950,1774338791823,-637.83,0.00043835,120]
[408845951,1774338791833,-863.52,0.00043835,60]
[408845952,1774338791842,-521.47,0.00043835,120]
[408845953,1774338791851,-500.0,0.00043835,120]
[408845954,1774338791861,-500.0,0.00043835,14]
[408845955,1774338791870,-500.0,0.00043835,120]
[408845956,1774338791880,-500.0,0.00043835,120]
[408845957,1774338791889,-1041.22,0.00043835,120]
[408845958,1774338791899,-711.52,0.00043835,120]
[408845959,1774338791908,-2031.81,0.00043835,120]
[408845960,1774338791918,-790.74,0.00043835,120]
[408845961,1774338791928,-1067.59,0.00043835,120]
[408845962,1774338791939,-500.0,0.00043835,120]
[408845963,1774338791948,-500.0,0.00043835,120]
[408845964,1774338791957,-1154.84,0.00043835,120]
[408845965,1774338791966,-500.0,0.00043835,120]
[408845966,1774338791975,-1104.3,0.00043835,120]
[408845967,1774338791985,-500.0,0.00043835,120]
[408845968,1774338791994,-1560.13,0.00043835,120]
[408845969,1774338792004,-2348.54,0.00043835,120]
[408845970,1774338792014,-541.43,0.00043835,120]
[408845971,1774338792024,-500.0,0.00043835,120]
[408845972,1774338792034,-500.0,0.00043835,120]
[408845973,1774338792044,-535.0,0.00043835,120]
[408845974,1774338792053,-858.21,0.00043835,120]
[408845975,1774338792062,-500.0,0.00043835,120]
[408845976,1774338792072,-500.0,0.00043835,120]
[408845977,1774338792082,-1539.96,0.00043835,120]
[408845978,1774338792092,-1021.53,0.00043835,120]
[408845979,1774338792102,-592.83,0.00043835,120]
[408845980,1774338792112,-519.74,0.00043835,120]
[408845981,1774338792122,-500.0,0.00043835,120]
[408845982,1774338792132,-813.09,0.00043835,120]
[408845983,1774338792141,-2149.78,0.00043835,120]
[408845984,1774338792151,-1598.49,0.00043835,120]
[408845985,1774338792160,-513.33,0.00043835,120]
[408845986,1774338792170,-500.0,0.00043835,120]
[408845987,1774338792180,-833.01,0.00043835,120]
[408845988,1774338792190,-656.49,0.00043835,120]
[408845989,1774338792199,-700.59,0.00043835,120]
[408845990,1774338792208,-500.0,0.00043835,120]
[408845991,1774338792219,-728.42,0.00043835,120]
[408845992,1774338792229,-500.0,0.00043835,120]